bitfinex/quotes_SOLUSD_20251118
["timestamp","ask_amount","ask_price","bid_price","bid_amount"]
[1763500069587,20.36155255,140.98,140.97,0.1]
[1763500069767,20.36155255,140.98,140.97,0.81]
[1763500073376,2.24059255,140.98,140.97,0.81]
[1763500075064,20.36155255,140.98,140.97,0.1]
[1763500076190,18.12096,140.98,140.97,0.81]
[1763500077989,4.24,141.0,140.97,0.81]
[1763500078187,18.12096,140.99,140.97,0.81]
[1763500080262,20.36155255,140.99,140.97,0.81]
[1763500080464,2.24059255,140.98,140.97,0.1]
[1763500080666,6.48059255,140.98,140.97,0.1]
[1763500082391,6.48059255,140.98,140.97,0.81]
[1763500083290,4.24,140.98,140.97,0.81]
[1763500083500,6.48059255,141.0,140.97,0.81]
[1763500083676,2.24059255,140.98,140.97,0.1]
[1763500083877,6.48059255,140.98,140.97,0.1]
[1763500085203,6.97059255,140.98,140.97,0.1]
[1763500085391,16.75942024,140.98,140.97,0.1]
[1763500085571,21.46857928,140.98,140.97,0.1]
[1763500085768,39.58953928,140.98,140.97,0.1]
[1763500085968,21.46857928,140.98,140.97,0.1]
[1763500089681,39.58953928,140.98,140.97,0.1]
[1763500089883,21.46857928,140.98,140.97,0.1]
[1763500091586,39.58953928,140.98,140.97,0.1]
[1763500091776,21.46857928,140.98,140.97,0.1]
[1763500092686,39.58953928,140.98,140.97,0.1]
[1763500092895,21.46857928,140.98,140.97,0.1]
[1763500093182,20.97857928,140.98,140.97,0.1]
[1763500094196,39.58953928,140.98,140.97,0.1]
[1763500094391,20.97857928,140.98,140.97,0.1]
[1763500094594,6.48059255,140.98,140.97,0.1]
[1763500095100,6.48059255,140.98,140.97,0.76]
[1763500096016,6.48059255,140.98,140.97,0.1]
[1763500097803,25.72179044,140.98,140.96,0.1]
[1763500098103,18.12096,140.95,140.93,1.93593088]
[1763500098302,6.48059255,140.94,140.93,2.59593088]
[1763500105627,4.24,140.94,140.93,2.59593088]
[1763500106204,6.48059255,140.94,140.93,2.59593088]
[1763500107110,6.48059255,140.94,140.93,1.93593088]
[1763500107421,6.48059255,140.94,140.93,2.65593088]
[1763500109228,25.09155255,140.94,140.93,1.93593088]
[1763500109431,34.88038024,140.94,140.93,1.93593088]
[1763500110298,39.57162627,140.94,140.93,1.93593088]
[1763500110896,40.83431927,140.94,140.93,1.93593088]
[1763500111323,27.90978769,140.9,140.86,0.72]
[1763500111526,18.12096,140.86,140.83,0.72]
[1763500111728,18.12096,140.83,140.82,0.82]
[1763500111932,25.86424555,140.83,140.82,0.82]
[1763500112333,7.74328555,140.83,140.82,0.82]
[1763500113297,10.27882769,140.87,140.82,0.82]
[1763500113298,18.12096,140.84,140.82,0.82]
[1763500113510,7.74328555,140.83,140.82,0.82]
[1763500113826,4.24,140.83,140.82,0.82]
[1763500114032,4.24,140.84,140.82,0.82]
[1763500116512,7.74328555,140.84,140.82,0.82]
[1763500118342,4.24,140.84,140.82,0.82]
[1763500118631,7.74328555,140.84,140.82,0.82]
[1763500119029,4.24,140.84,140.82,0.82]
[1763500124451,18.12096,140.89,140.82,4.32328555]
[1763500124749,7.74328555,140.88,140.82,4.32328555]
[1763500124925,7.74328555,140.88,140.83,0.68]
[1763500127539,7.74328555,140.88,140.83,4.18328555]
[1763500127739,4.24,140.88,140.84,3.50328555]
[1763500127942,7.74328555,140.88,140.84,0.68]
[1763500128138,7.74328555,140.88,140.85,0.68]
[1763500132024,4.24,140.88,140.85,0.68]
[1763500132348,7.74328555,140.91,140.86,3.50328555]
[1763500132548,25.86424555,140.91,140.87,0.68]
[1763500132724,4.24,140.91,140.87,0.68]
[1763500133053,4.24,140.91,140.87,4.18328555]
[1763500133448,4.24,140.91,140.88,0.68]
[1763500133747,4.24,140.93,140.88,4.18328555]
[1763500133934,3.50328555,140.96,140.91,3.50328555]
[1763500134254,7.74328555,140.96,140.92,0.68]
[1763500135244,3.50328555,140.94,140.92,0.68]
[1763500135450,25.86424555,140.93,140.85,9.78882769]
[1763500135639,3.50328555,140.91,140.88,0.68]
[1763500138537,22.36096,140.93,140.89,3.50328555]
[1763500138737,22.36096,140.93,140.88,4.18328555]
[1763500139128,25.86424555,140.93,140.89,0.68]
[1763500140250,4.24,140.93,140.9,3.50328555]
[1763500140460,3.50328555,140.96,140.91,4.18328555]
[1763500140628,7.74328555,140.96,140.91,4.18328555]
[1763500140828,3.50328555,140.95,140.92,0.68]
[1763500141044,4.24,140.96,140.92,0.68]
[1763500141250,7.74328555,140.96,140.92,0.68]
[1763500141731,4.24,140.96,140.92,0.68]
[1763500141932,7.74328555,140.96,140.92,0.68]
[1763500143447,4.24,140.96,140.94,3.50328555]
[1763500143951,4.24,140.96,140.95,0.68]
[1763500149560,18.12096,140.98,140.95,4.18328555]
[1763500149758,18.12096,140.98,140.96,4.18328555]
[1763500150158,18.12096,140.98,140.97,0.68]
[1763500150548,4.24,140.99,140.97,0.68]
[1763500150859,22.36096,140.99,140.96,3.50328555]
[1763500151050,22.36096,140.99,140.97,0.68]
[1763500151357,4.24,140.99,140.97,0.68]
[1763500155275,3.99328555,140.98,140.93,0.7]
[1763500155580,3.50328555,140.98,140.94,0.7]
[1763500156561,3.50328555,140.97,140.94,0.7]
[1763500157179,4.24,140.96,140.94,0.7]
[1763500157369,4.24,140.96,140.9,0.7]
[1763500157370,3.50328555,140.95,140.9,0.7]
[1763500157572,18.12096,140.93,140.89,3.50328555]
[1763500157877,18.12096,140.93,140.91,0.7]
[1763500159883,25.86424555,140.97,140.92,3.50328555]
[1763500160079,18.12096,140.95,140.92,3.50328555]
[1763500160261,18.12096,140.95,140.93,0.7]
[1763500160461,18.12096,140.95,140.93,4.20328555]
[1763500160656,4.24,140.96,140.94,3.50328555]
[1763500160864,3.50328555,140.99,140.95,3.50328555]
[1763500160865,4.24,140.99,140.95,3.50328555]
[1763500161169,4.24,140.99,140.95,4.20328555]
[1763500161374,7.74328555,140.99,140.93,3.50328555]
[1763500161565,8.23328555,140.99,140.95,0.7]
[1763500161881,4.24,140.99,140.95,4.20328555]
[1763500162266,4.24,140.99,140.96,0.7]
[1763500162465,7.74328555,140.99,140.96,0.7]
[1763500163288,4.24,140.99,140.96,0.7]
[1763500164578,3.50328555,141.01,140.96,0.7]
[1763500164782,4.24,141.0,140.96,4.20328555]
[1763500165292,4.24,141.0,140.97,0.7]
[1763500166471,25.86424555,141.0,140.97,0.7]
[1763500166892,3.50328555,140.98,140.85,18.12096]
[1763500167094,3.50328555,140.96,140.93,0.7]
[1763500167592,4.24,140.97,140.93,4.20328555]
[1763500167896,18.12096,140.97,140.94,3.50328555]
[1763500168190,18.12096,140.97,140.94,4.20328555]
[1763500168370,25.86424555,140.99,140.95,0.7]
[1763500169385,22.36096,140.99,140.95,0.7]
[1763500169581,21.62424555,141.04,140.95,0.7]
[1763500169764,21.62424555,141.0,140.95,4.20328555]
[1763500169968,25.86424555,141.0,140.94,3.50328555]
[1763500170167,25.86424555,141.0,140.96,0.7]
[1763500170395,3.50328555,140.99,140.96,0.7]
[1763500171976,25.86424555,141.0,140.96,0.7]
[1763500172795,24.59959861,141.0,140.96,0.7]
[1763500176099,22.36096,141.0,140.96,0.7]
[1763500176583,4.24,141.0,140.96,0.7]
[1763500177273,4.24,141.0,140.96,2.93863861]
[1763500177479,4.24,141.0,140.97,2.23863861]
[1763500177696,4.24,141.0,140.97,2.93863861]
[1763500178000,4.24,141.0,140.98,0.7]
[1763500178506,0.49,141.04,140.98,2.93863861]
[1763500178696,4.24,141.03,140.99,2.23863861]
[1763500178876,4.24,141.03,140.99,2.93863861]
[1763500179075,4.24,141.03,141.0,0.7]
[1763500180888,4.24,141.03,141.0,2.93863861]
[1763500181094,6.47863861,141.05,141.01,0.7]
[1763500183580,2.23863861,141.03,141.0,0.66]
[1763500185191,18.12096,141.04,141.0,0.66]
[1763500185393,0.69,141.07,141.0,2.89863861]
[1763500185596,6.67863861,141.07,141.0,0.66]
[1763500185801,4.44,141.07,141.03,2.23863861]
[1763500186093,22.56096,141.07,141.04,0.66]
[1763500186805,24.79959861,141.07,141.04,0.66]
[1763500187018,23.05096,141.07,141.02,0.66]
[1763500187220,2.23863861,141.06,141.02,0.66]
[1763500187603,24.79959861,141.07,141.02,2.89863861]
[1763500188116,24.79959861,141.07,141.03,0.66]
[1763500191325,2.23863861,141.06,141.03,0.66]
[1763500192012,4.44,141.07,141.0,2.23863861]
[1763500192013,2.23863861,141.04,141.0,0.66]
[1763500192311,2.23863861,141.03,140.99,18.78096]
[1763500192632,2.23863861,141.03,141.0,0.66]
[1763500193415,6.45863861,141.04,141.0,0.66]
[1763500199216,2.23863861,141.03,141.0,0.66]
[1763500200015,6.45863861,141.04,141.0,0.66]
[1763500201309,2.23863861,141.03,141.0,0.66]
[1763500201705,2.23863861,141.02,140.98,0.66]
[1763500202018,2.23863861,141.01,140.98,0.66]
[1763500202328,2.23863861,141.02,140.98,0.66]
[1763500202541,6.45863861,141.06,141.01,2.23863861]
[1763500202703,0.2,141.07,141.03,2.23863861]
[1763500203026,0.2,141.07,141.05,2.23863861]
[1763500203326,0.2,141.07,141.06,2.89863861]
[1763500205907,0.2,141.11,141.07,9.78882769]
[1763500206244,4.42,141.22,141.13,18.12096]
[1763500206530,4.42,141.22,141.16,2.23863861]
[1763500206717,0.2,141.22,141.21,2.23863861]
[1763500206903,0.2,141.22,141.21,5.8074715]
[1763500207103,0.2,141.22,141.21,6.4674715]
[1763500207510,0.2,141.22,141.21,0.66]
[1763500207719,0.2,141.22,141.21,6.4674715]
[1763500208228,0.2,141.22,141.21,0.66]
[1763500208425,0.2,141.22,141.21,6.4674715]
[1763500208729,4.22,141.29,141.21,6.4674715]
[1763500209025,18.12096,141.27,141.23,5.8074715]
[1763500209232,18.12096,141.27,141.23,6.4674715]
[1763500209618,0.66,141.3,141.23,6.4674715]
[1763500209814,18.12096,141.28,141.23,6.4674715]
[1763500210829,0.66,141.27,141.21,4.88]
[1763500211130,18.12096,141.26,141.22,0.66]
[1763500212716,18.12096,141.27,141.22,0.66]
[1763500214026,22.34096,141.27,141.22,0.66]
[1763500214419,22.34096,141.27,141.23,5.8074715]
[1763500214609,18.82096,141.26,141.23,5.8074715]
[1763500214807,22.34096,141.26,141.23,6.5174715]
[1763500215237,22.34096,141.26,141.23,5.8074715]
[1763500215422,22.34096,141.26,141.21,0.71]
[1763500215627,22.34096,141.26,141.23,5.8074715]
[1763500216030,4.22,141.25,141.23,5.8074715]
[1763500216228,22.34096,141.25,141.23,5.8074715]
[1763500216540,22.34096,141.25,141.22,5.8074715]
[1763500216921,18.12096,141.23,141.19,0.71]
[1763500217142,18.12096,141.23,141.2,5.8074715]
[1763500217438,18.82096,141.23,141.2,5.8074715]
[1763500218025,18.82096,141.23,141.2,6.5174715]
[1763500218449,18.12096,141.23,141.21,5.8074715]
[1763500218648,0.2,141.24,141.22,5.8074715]
[1763500218855,0.2,141.24,141.23,5.8074715]
[1763500219037,0.2,141.24,141.23,6.5174715]
[1763500219723,0.2,141.24,141.23,5.8074715]
[1763500220943,0.2,141.24,141.23,6.4674715]
[1763500223231,0.2,141.24,141.23,5.8074715]
[1763500224042,0.2,141.24,141.23,6.4674715]
[1763500224452,0.2,141.24,141.23,0.66]
[1763500226058,0.2,141.24,141.23,6.4674715]
[1763500226261,0.2,141.24,141.23,34.37725919]
[1763500227671,0.2,141.24,141.23,16.25629919]
[1763500227831,4.22,141.29,141.23,34.37725919]
[1763500228163,4.22,141.29,141.28,5.8074715]
[1763500228546,4.89,141.29,141.27,5.8074715]
[1763500230772,4.89,141.29,141.27,2.22866526]
[1763500233055,0.67,141.29,141.27,2.22866526]
[1763500233239,4.22,141.28,141.27,2.22866526]
[1763500233645,4.22,141.29,141.27,2.22866526]
[1763500233948,18.79096,141.3,141.28,2.22866526]
[1763500234148,18.12096,141.3,141.27,2.22866526]
[1763500234338,4.22,141.28,141.27,2.22866526]
[1763500234545,0.67,141.3,141.27,2.22866526]
[1763500234745,0.67,141.3,141.27,3.48202927]
[1763500235369,4.22,141.29,141.27,3.48202927]
[1763500235573,0.67,141.3,141.27,3.48202927]
[1763500235948,4.22,141.29,141.27,3.48202927]
[1763500236145,4.22,141.28,141.27,3.48202927]
[1763500236664,0.67,141.3,141.27,3.48202927]
[1763500237245,4.22,141.29,141.27,3.48202927]
[1763500237440,0.67,141.3,141.27,3.48202927]
[1763500237753,18.79096,141.3,141.28,3.48202927]
[1763500237952,0.67,141.3,141.28,3.48202927]
[1763500238164,4.22,141.29,141.28,3.48202927]
[1763500238566,4.89,141.29,141.24,0.66]
[1763500238778,4.89,141.29,141.27,3.48202927]
[1763500239192,18.12096,141.31,141.28,4.14202927]
[1763500239471,4.22,141.3,141.29,3.48202927]
[1763500239680,4.89,141.3,141.29,3.48202927]
[1763500239881,0.67,141.34,141.29,4.14202927]
[1763500240174,4.22,141.34,141.33,3.48202927]
[1763500244776,18.12096,141.36,141.33,4.18202927]
[1763500244968,4.22,141.35,141.29,9.78882769]
[1763500245169,4.22,141.35,141.33,0.7]
[1763500245880,0.2,141.37,141.33,0.7]
[1763500246482,0.2,141.37,141.36,3.48202927]
[1763500247852,0.2,141.37,141.34,0.7]
[1763500247853,0.89,141.37,141.34,3.48202927]
[1763500248050,0.89,141.37,141.33,3.48202927]
[1763500248254,0.2,141.37,141.33,3.48202927]
[1763500248471,0.69,141.36,141.31,0.7]
[1763500248671,4.22,141.35,141.33,3.48202927]
[1763500250179,0.89,141.37,141.34,3.48202927]
[1763500250353,4.22,141.36,141.35,3.48202927]
[1763500250757,4.42,141.37,141.35,4.18202927]
[1763500251056,0.2,141.38,141.36,3.48202927]
[1763500251256,4.42,141.38,141.37,3.48202927]
[1763500251771,4.22,141.38,141.37,3.48202927]
[1763500253084,4.42,141.39,141.37,3.48202927]
[1763500253993,5.11,141.39,141.37,3.48202927]
[1763500254196,0.69,141.38,141.36,3.48202927]
[1763500254394,0.69,141.38,141.35,3.48202927]
[1763500254683,0.69,141.38,141.34,3.48202927]
[1763500255486,18.12096,141.36,141.32,3.48202927]
[1763500255676,4.22,141.35,141.32,3.48202927]
[1763500255868,4.91,141.35,141.32,3.48202927]
[1763500256884,4.91,141.35,141.32,9.69244531]
[1763500260392,4.91,141.35,141.3,0.7]
[1763500260393,0.69,141.34,141.3,0.7]
[1763500260600,4.22,141.35,141.27,27.90978769]
[1763500260601,4.22,141.35,141.32,9.69244531]
[1763500260804,4.91,141.35,141.32,9.69244531]
[1763500261010,0.69,141.34,141.28,0.7]
[1763500261304,18.12096,141.33,141.28,10.39244531]
[1763500261510,4.22,141.32,141.29,9.69244531]
[1763500261678,4.91,141.32,141.29,10.39244531]
[1763500261879,10.38244531,141.34,141.29,10.39244531]
[1763500262078,4.91,141.33,141.29,10.39244531]
[1763500262502,0.69,141.32,141.29,10.39244531]
[1763500262892,0.69,141.34,141.3,9.69244531]
[1763500263107,18.12096,141.31,141.27,0.7]
[1763500263408,4.22,141.3,141.25,0.7]
[1763500263590,14.60244531,141.3,141.25,10.39244531]
[1763500263907,0.69,141.29,141.25,10.39244531]
[1763500264081,0.69,141.29,141.26,9.69244531]
[1763500265400,18.81096,141.29,141.25,10.39244531]
[1763500265602,0.69,141.29,141.25,10.39244531]
[1763500266177,0.69,141.29,141.25,0.7]
[1763500266807,0.69,141.29,141.24,9.69244531]
[1763500267108,0.69,141.29,141.22,9.69244531]
[1763500267109,9.69244531,141.28,141.22,9.69244531]
[1763500267402,13.91244531,141.27,141.22,9.69244531]
[1763500267604,32.03340531,141.27,141.22,9.69244531]
[1763500267805,23.03096,141.27,141.23,10.39244531]
[1763500269105,23.03096,141.27,141.24,9.69244531]
[1763500269608,4.22,141.26,141.24,9.69244531]
[1763500270790,4.22,141.26,141.23,9.69244531]
[1763500270985,0.69,141.25,141.22,9.69244531]
[1763500271196,0.69,141.25,141.21,9.69244531]
[1763500271529,22.34096,141.24,141.19,9.69244531]
[1763500271838,32.03340531,141.24,141.19,9.69244531]
[1763500272014,0.69,141.23,141.19,9.69244531]
[1763500272898,0.69,141.23,141.18,10.39244531]
[1763500273100,18.12096,141.22,141.18,10.39244531]
[1763500273523,2.0,141.34,141.21,9.69244531]
[1763500273814,0.68,141.27,141.23,9.69244531]
[1763500274110,18.12096,141.25,141.23,9.69244531]
[1763500274488,18.12096,141.25,141.24,9.69244531]
[1763500274700,0.68,141.24,141.18,21.64870499]
[1763500274896,0.68,141.24,141.2,9.69244531]
[1763500275085,10.37244531,141.24,141.19,9.69244531]
[1763500275601,0.68,141.23,141.19,9.69244531]
[1763500275809,4.22,141.22,141.19,9.69244531]
[1763500276022,4.22,141.22,141.19,10.34244531]
[1763500276544,4.9,141.22,141.19,9.69244531]
[1763500277024,4.22,141.22,141.2,9.69244531]
[1763500277800,4.9,141.22,141.19,10.34244531]
[1763500278111,4.22,141.23,141.21,9.69244531]
[1763500278316,4.22,141.23,141.22,9.69244531]
[1763500279523,4.22,141.23,141.21,9.69244531]
[1763500280800,4.92,141.23,141.21,9.69244531]
[1763500281626,4.22,141.23,141.21,9.69244531]
[1763500282326,4.92,141.23,141.21,9.69244531]
[1763500282521,4.22,141.23,141.21,9.69244531]
[1763500283514,4.92,141.23,141.21,9.69244531]
[1763500283825,4.22,141.23,141.21,9.69244531]
[1763500285220,4.22,141.24,141.21,9.69244531]
[1763500285631,4.92,141.24,141.21,9.69244531]
[1763500287531,4.92,141.24,141.2,0.71]
[1763500287712,4.92,141.24,141.21,9.69244531]
[1763500288926,4.92,141.24,141.2,10.40244531]
[1763500289125,4.92,141.24,141.21,9.69244531]
[1763500289529,4.92,141.24,141.21,10.40244531]
[1763500289834,4.92,141.24,141.22,9.69244531]
[1763500292222,4.92,141.24,141.21,0.71]
[1763500292223,18.12096,141.24,141.23,10.40244531]
[1763500292536,22.34096,141.25,141.23,10.40244531]
[1763500292936,4.22,141.25,141.23,9.69244531]
[1763500293236,23.04096,141.25,141.23,9.69244531]
[1763500294832,23.04096,141.25,141.23,5.80709976]
[1763500295146,23.04096,141.25,141.22,6.51709976]
[1763500295848,23.04096,141.25,141.23,5.80709976]
[1763500296867,18.12096,141.25,141.23,5.80709976]
[1763500297036,22.34096,141.25,141.23,5.80709976]
[1763500299675,22.34096,141.25,141.21,18.12096]
[1763500299841,23.04096,141.25,141.22,6.51709976]
[1763500300458,22.34096,141.25,141.22,6.51709976]
[1763500300630,22.34096,141.25,141.23,5.80709976]
[1763500300833,4.22,141.25,141.23,2.22993242]
[1763500301052,4.92,141.25,141.23,2.22993242]
[1763500301446,4.92,141.25,141.22,2.93993242]
[1763500302064,4.92,141.25,141.23,2.22993242]
[1763500307681,4.92,141.25,141.22,2.93993242]
[1763500308271,0.69,141.24,141.2,2.22993242]
[1763500308450,4.22,141.23,141.21,2.22993242]
[1763500308952,4.91,141.23,141.21,2.22993242]
[1763500309570,4.91,141.23,141.22,2.22993242]
[1763500309750,4.22,141.23,141.22,2.22993242]
[1763500309955,0.69,141.24,141.2,0.65]
[1763500310149,0.69,141.23,141.2,2.22993242]
[1763500311674,0.69,141.23,141.2,2.87993242]
[1763500312043,0.69,141.23,141.2,2.22993242]
[1763500314477,0.69,141.23,141.19,2.87993242]
[1763500314676,22.34096,141.24,141.2,2.22993242]
[1763500314855,23.03096,141.24,141.21,2.22993242]
[1763500315049,22.34096,141.24,141.2,2.22993242]
[1763500315251,0.69,141.23,141.2,2.22993242]
[1763500315650,0.69,141.23,141.2,2.87993242]
[1763500318475,0.69,141.23,141.2,0.65]
[1763500319777,0.69,141.23,141.17,8.44]
[1763500319982,0.69,141.23,141.19,2.87993242]
[1763500320483,18.12096,141.24,141.2,2.87993242]
[1763500320784,18.12096,141.24,141.21,2.22993242]
[1763500320978,0.69,141.25,141.22,2.22993242]
[1763500321290,0.69,141.25,141.22,2.87993242]
[1763500321978,23.03096,141.26,141.23,2.87993242]
[1763500323363,23.03096,141.26,141.23,0.65]
[1763500323564,23.03096,141.26,141.23,2.87993242]
[1763500324400,23.03096,141.26,141.19,12.01876011]
[1763500324401,18.12096,141.26,141.24,2.87993242]
[1763500325166,18.12096,141.26,141.24,0.65]
[1763500328297,4.22,141.28,141.24,2.87993242]
[1763500328675,4.91,141.28,141.25,0.65]
[1763500328873,4.22,141.28,141.25,0.65]
[1763500329374,4.91,141.28,141.24,2.22993242]
[1763500330204,0.69,141.28,141.24,2.22993242]
[1763500331220,0.69,141.28,141.24,2.87993242]
[1763500333302,0.69,141.28,141.24,2.22993242]
[1763500333510,0.69,141.28,141.25,0.66]
[1763500334415,0.69,141.28,141.24,2.88993242]
[1763500335714,0.69,141.28,141.25,0.66]
[1763500335910,0.69,141.28,141.25,2.88993242]
[1763500338194,0.69,141.28,141.25,2.22993242]
[1763500340822,18.79096,141.3,141.26,2.22993242]
[1763500341008,0.67,141.29,141.26,2.22993242]
[1763500344796,0.67,141.29,141.25,2.22993242]
[1763500345002,0.67,141.29,141.27,14.00882769]
[1763500345219,18.12096,141.3,141.27,14.00882769]
[1763500345220,0.67,141.3,141.27,14.00882769]
[1763500348908,2.89993242,141.3,141.27,14.00882769]
[1763500349409,0.67,141.29,141.27,14.00882769]
[1763500349617,18.79096,141.29,141.27,14.00882769]
[1763500349810,2.89993242,141.29,141.27,14.00882769]
[1763500350009,0.67,141.28,141.27,14.00882769]
[1763500350206,0.67,141.28,141.24,2.22993242]
[1763500350515,2.22993242,141.27,141.25,14.00882769]
[1763500350718,2.22993242,141.27,141.22,6.44993242]
[1763500350914,0.67,141.26,141.22,6.44993242]
[1763500351120,0.67,141.26,141.23,4.22]
[1763500351643,4.22,141.29,141.23,6.83993242]
[1763500351929,0.67,141.26,141.23,6.44993242]
[1763500352837,0.67,141.26,141.23,6.83993242]
[1763500353018,0.67,141.26,141.23,6.44993242]
[1763500354907,0.67,141.26,141.23,7.70362597]
[1763500355244,0.67,141.26,141.23,3.48362597]
[1763500355533,0.67,141.26,141.24,18.12096]
[1763500357835,0.67,141.29,141.25,3.87362597]
[1763500358037,0.67,141.32,141.28,3.48362597]
[1763500358331,0.67,141.32,141.29,3.48362597]
[1763500358531,0.67,141.32,141.29,9.32004527]
[1763500358748,0.67,141.34,141.31,3.48362597]
[1763500359235,0.67,141.34,141.32,3.48362597]
[1763500359942,0.67,141.34,141.32,7.70362597]
[1763500360535,0.67,141.34,141.32,3.48362597]
[1763500360839,0.67,141.34,141.33,7.70362597]
[1763500362313,0.7,141.36,141.33,11.18725194]
[1763500362544,0.9,141.39,141.35,3.48362597]
[1763500362715,0.7,141.38,141.35,3.48362597]
[1763500363030,0.2,141.39,141.37,3.48362597]
[1763500363213,0.2,141.39,141.38,3.48362597]
[1763500363617,0.2,141.39,141.38,11.57725194]
[1763500364010,4.38362597,141.39,141.38,8.09362597]
[1763500364213,8.60362597,141.39,141.33,3.48362597]
[1763500364414,18.12096,141.37,141.35,8.09362597]
[1763500364744,0.7,141.36,141.35,8.09362597]
[1763500366146,18.82096,141.36,141.35,8.09362597]
[1763500366760,18.82096,141.36,141.33,3.48362597]
[1763500366964,0.7,141.35,141.34,8.09362597]
[1763500368283,18.82096,141.37,141.34,8.09362597]
[1763500368568,0.2,141.39,141.34,11.57725194]
[1763500368569,18.12096,141.36,141.34,11.57725194]
[1763500369481,18.12096,141.36,141.35,11.57725194]
[1763500370755,18.12096,141.36,141.35,15.45087791]
[1763500371054,18.12096,141.36,141.35,15.06087791]
[1763500371255,18.12096,141.36,141.35,15.45087791]
[1763500371462,0.9,141.39,141.35,15.45087791]
[1763500371642,18.82096,141.38,141.35,11.57725194]
[1763500371983,22.30458597,141.38,141.35,11.57725194]
[1763500372272,0.7,141.37,141.35,11.57725194]
[1763500372962,18.12096,141.36,141.35,11.57725194]
[1763500373155,18.12096,141.36,141.32,7.70362597]
[1763500373365,0.7,141.35,141.33,11.57725194]
[1763500380182,9.78882769,141.34,141.33,10.13725194]
[1763500380360,17.49245366,141.34,141.33,10.13725194]
[1763500380683,17.49245366,141.34,141.29,0.65]
[1763500380684,18.12096,141.31,141.29,0.65]
[1763500381078,18.12096,141.31,141.29,10.78725194]
[1763500382578,0.7,141.33,141.29,10.78725194]
[1763500382755,18.12096,141.31,141.29,10.78725194]
[1763500383361,0.7,141.33,141.3,0.65]
[1763500383660,4.18362597,141.35,141.3,0.65]
[1763500383862,0.7,141.35,141.3,0.65]
[1763500384063,3.48362597,141.36,141.3,0.65]
[1763500384261,18.12096,141.35,141.32,3.48362597]
[1763500384580,4.18362597,141.38,141.32,7.70362597]
[1763500384789,18.12096,141.36,141.33,0.65]
[1763500384994,18.12096,141.35,141.33,0.65]
[1763500385465,18.12096,141.35,141.32,4.22]
[1763500385661,18.12096,141.35,141.32,4.87]
[1763500385879,3.48362597,141.33,141.31,18.12096]
[1763500386078,21.60458597,141.33,141.29,0.65]
[1763500386388,0.7,141.32,141.3,18.12096]
[1763500386791,4.18362597,141.32,141.29,0.65]
[1763500386977,4.18362597,141.32,141.29,18.77096]
[1763500387177,3.48362597,141.31,141.29,18.12096]
[1763500387377,3.48362597,141.31,141.28,4.22]
[1763500387584,3.48362597,141.31,141.28,18.77096]
[1763500387761,4.18362597,141.3,141.28,18.12096]
[1763500387963,4.18362597,141.3,141.25,0.65]
[1763500388290,21.60458597,141.29,141.27,18.12096]
[1763500388492,18.12096,141.29,141.25,0.65]
[1763500388667,22.30458597,141.29,141.26,18.12096]
[1763500389993,18.82096,141.29,141.26,18.12096]
[1763500390197,18.82096,141.29,141.26,18.77096]
[1763500390569,18.12096,141.29,141.26,18.77096]
[1763500391093,4.18362597,141.3,141.26,18.77096]
[1763500394305,4.18362597,141.3,141.26,0.65]
[1763500394674,4.18362597,141.3,141.27,18.77096]
[1763500397607,18.12096,141.29,141.26,0.65]
[1763500397790,21.60458597,141.29,141.26,0.65]
[1763500397991,21.60458597,141.29,141.26,19.42096]
[1763500398188,4.16362597,141.28,141.25,4.22]
[1763500398501,18.12096,141.27,141.24,24.33096]